[Event "NJSK 2018 Jeugd B"]
[Site "Assen, Netherlands"]
[Date "2018.05.05"]
[Round "7.2"]
[White "Bruil, Rembrandt"]
[Black "Emans, Job"]
[Result "1-0"]
[TimeControl "40/90m+30m+30sec/move"]
[WhiteElo "1998"]
[BlackElo "1803"]

1. d4 {[%clk 01:30:57]} {[%emt 00:00:09]} Nf6 {[%clk 01:30:53]} {[%emt
00:00:40]} 2. c4 {[%clk 01:31:18]} {[%emt 00:00:18]} e6 {[%clk 01:31:15]}
{[%emt 00:00:11]} 3. Nc3 {[%clk 01:31:41]} {[%emt 00:00:11]} Bb4 {[%clk
01:31:36]} {[%emt 00:00:11]} 4. Qc2 {[%clk 01:32:06]} {[%emt 00:00:06]} O-O
{[%clk 01:31:56]} {[%emt 00:00:14]} 5. Nf3 {[%clk 01:31:24]} {[%emt 00:01:30]}
b6 {[%clk 01:31:24]} {[%emt 00:01:01]} 6. Bg5 {[%clk 01:25:28]} {[%emt
00:05:02]} Bb7 {[%clk 01:28:50]} {[%emt 00:03:07]} 7. a3 {[%clk 01:12:36]}
{[%emt 00:13:20]} Bxc3+ {[%clk 01:24:59]} {[%emt 00:04:23]} 8. Qxc3 {[%clk
01:12:49]} {[%emt 00:00:14]} d6 {[%clk 01:25:09]} {[%emt 00:00:20]} 9. g3
{[%clk 01:05:33]} {[%emt 00:07:46]} Nbd7 {[%clk 01:23:43]} {[%emt 00:01:55]} 10.
Bg2 {[%clk 01:04:49]} {[%emt 00:01:15]} h6 {[%clk 01:22:05]} {[%emt 00:02:08]}
11. Bxf6 {[%clk 00:52:14]} {[%emt 00:13:05]} Nxf6 {[%clk 01:19:43]} {[%emt
00:02:56]} 12. O-O {[%clk 00:51:44]} {[%emt 00:00:55]} Qe7 {[%clk 01:14:54]}
{[%emt 00:05:19]} 13. Rfe1 {[%clk 00:46:41]} {[%emt 00:05:33]} c5 {[%clk
01:07:55]} {[%emt 00:07:29]} 14. Rad1 {[%clk 00:41:42]} {[%emt 00:05:29]} Rfd8
{[%clk 01:05:29]} {[%emt 00:02:56]} 15. dxc5 {[%clk 00:37:38]} {[%emt
00:04:34]} dxc5 {[%clk 00:58:21]} {[%emt 00:07:38]} 16. Ne5 {[%clk 00:36:18]}
{[%emt 00:01:50]} Bxg2 {[%clk 00:54:58]} {[%emt 00:03:52]} 17. Kxg2 {[%clk
00:35:40]} {[%emt 00:01:08]} Qc7 {[%clk 00:55:01]} {[%emt 00:00:27]} 18. Qe3
{[%clk 00:28:08]} {[%emt 00:08:02]} Rd6 {[%clk 00:51:05]} {[%emt 00:04:27]} 19.
Rd3 {[%clk 00:13:12]} {[%emt 00:15:26]} Rxd3 {[%clk 00:47:04]} {[%emt
00:04:40]} 20. Nxd3 {[%clk 00:13:25]} {[%emt 00:00:09]} Rd8 {[%clk 00:46:55]}
{[%emt 00:00:39]} 21. b3 {[%clk 00:04:29]} {[%emt 00:09:26]} Rd4 {[%clk
00:43:22]} {[%emt 00:04:03]} 22. Rd1 {[%clk 00:02:42]} {[%emt 00:02:17]} Qd6
{[%clk 00:26:22]} {[%emt 00:17:30]} 23. f3 {[%clk 00:02:17]} {[%emt 00:00:56]}
Kh8 {[%clk 00:19:22]} {[%emt 00:07:29]} 24. Qd2 {[%clk 00:02:15]} {[%emt
00:00:32]} Qd8 {[%clk 00:18:55]} {[%emt 00:00:58]} 25. Qc2 {[%clk 00:01:49]}
{[%emt 00:00:56]} Qd6 {[%clk 00:10:46]} {[%emt 00:08:39]} 26. e3 {[%clk
00:02:02]} {[%emt 00:00:18]} Nd5 {[%clk 00:04:50]} {[%emt 00:06:24]} 27. cxd5
{[%clk 00:02:07]} {[%emt 00:00:26]} Rxd5 {[%clk 00:05:16]} {[%emt 00:00:03]} 28.
Nf2 {[%clk 00:01:58]} {[%emt 00:00:40]} b5 {[%clk 00:05:08]} {[%emt 00:00:38]}
29. Ne4 {[%clk 00:01:27]} {[%emt 00:01:01]} Qe5 {[%clk 00:02:23]} {[%emt
00:03:15]} 30. Rxd5 {[%clk 00:01:21]} {[%emt 00:00:36]} exd5 {[%clk 00:02:38]}
{[%emt 00:00:15]} 31. Qxc5 {[%clk 00:01:26]} {[%emt 00:00:25]} Qb2+ {[%clk
00:02:48]} {[%emt 00:00:20]} 32. Nf2 {[%clk 00:01:51]} {[%emt 00:00:08]} Qxb3
{[%clk 00:02:52]} {[%emt 00:00:23]} 33. Qxa7 {[%clk 00:02:16]} {[%emt
00:00:05]} Kg8 {[%clk 00:02:18]} {[%emt 00:01:06]} 34. Qe7 {[%clk 00:02:09]}
{[%emt 00:00:37]} f6 {[%clk 00:01:35]} {[%emt 00:01:14]} 35. Qc5 {[%clk
00:02:13]} {[%emt 00:00:24]} Qc4 {[%clk 00:01:20]} {[%emt 00:00:45]} 36. Qxc4
{[%clk 00:02:35]} {[%emt 00:00:08]} dxc4 {[%clk 00:01:46]} {[%emt 00:00:04]} 37.
Nd1 {[%clk 00:02:52]} {[%emt 00:00:13]} 1-0

[Event "NJSK 2018 Jeugd B"]
[Site "Assen, Netherlands"]
[Date "2018.05.05"]
[Round "7.3"]
[White "Wedda, Dries"]
[Black "Tang, Charlie"]
[Result "1/2-1/2"]
[TimeControl "40/90m+30m+30sec/move"]
[WhiteElo "2096"]
[BlackElo "2127"]

1. d4 {[%clk 01:30:58]} {[%emt 00:00:02]} d5 {[%clk 01:30:47]} {[%emt
00:00:52]} 2. c4 {[%clk 01:31:22]} {[%emt 00:00:09]} c6 {[%clk 01:31:10]}
{[%emt 00:00:11]} 3. Nf3 {[%clk 01:31:48]} {[%emt 00:00:07]} Nf6 {[%clk
01:31:34]} {[%emt 00:00:07]} 4. Qb3 {[%clk 01:32:15]} {[%emt 00:00:06]} Qb6
{[%clk 01:30:23]} {[%emt 00:02:00]} 5. Nc3 {[%clk 01:31:07]} {[%emt 00:01:53]}
Qxb3 {[%clk 01:28:34]} {[%emt 00:02:02]} 6. axb3 {[%clk 01:31:36]} {[%emt
00:00:01]} Na6 {[%clk 01:19:36]} {[%emt 00:08:08]} 7. Bf4 {[%clk 01:20:38]}
{[%emt 00:11:28]} e6 {[%clk 01:16:51]} {[%emt 00:03:15]} 8. e3 {[%clk
01:07:56]} {[%emt 00:13:12]} Nb4 {[%clk 01:15:47]} {[%emt 00:01:34]} 9. Kd2
{[%clk 01:00:27]} {[%emt 00:07:59]} b6 {[%clk 01:15:58]} {[%emt 00:00:19]} 10.
h3 {[%clk 00:59:40]} {[%emt 00:01:17]} Bb7 {[%clk 01:12:22]} {[%emt 00:04:07]}
11. Be2 {[%clk 00:58:45]} {[%emt 00:01:24]} Be7 {[%clk 01:12:16]} {[%emt
00:00:38]} 12. Rhc1 {[%clk 00:57:43]} {[%emt 00:01:31]} O-O {[%clk 01:11:01]}
{[%emt 00:01:48]} 13. Ra4 {[%clk 00:49:31]} {[%emt 00:08:39]} Rfc8 {[%clk
00:55:56]} {[%emt 00:15:35]} 14. Ne5 {[%clk 00:44:44]} {[%emt 00:05:17]} a5
{[%clk 00:37:41]} {[%emt 00:18:45]} 15. g4 {[%clk 00:44:26]} {[%emt 00:00:48]}
Rd8 {[%clk 00:35:36]} {[%emt 00:02:35]} 16. Nd3 {[%clk 00:43:24]} {[%emt
00:01:32]} Rd7 {[%clk 00:35:10]} {[%emt 00:00:56]} 17. Ne5 {[%clk 00:37:24]}
{[%emt 00:06:30]} Rdd8 {[%clk 00:34:48]} {[%emt 00:00:52]} 18. Nd3 {[%clk
00:34:23]} {[%emt 00:03:31]} Rd7 {[%clk 00:33:29]} {[%emt 00:01:49]} 19. Ne5
{[%clk 00:28:50]} {[%emt 00:06:02]} Rdd8 {[%clk 00:15:27]} {[%emt 00:18:32]}
1/2-1/2

[Event "NJSK 2018 Jeugd B"]
[Site "Assen, Netherlands"]
[Date "2018.05.05"]
[Round "7.4"]
[White "Hilwerda, Jonas"]
[Black "Honkoop, Gilian"]
[Result "1/2-1/2"]
[TimeControl "40/90m+30m+30sec/move"]
[WhiteElo "2108"]
[BlackElo "1889"]

1. d4 {[%clk 01:30:58]} {[%emt 00:00:04]} Nf6 {[%clk 01:30:56]} {[%emt
00:00:13]} 2. Bf4 {[%clk 01:31:25]} {[%emt 00:00:22]} d5 {[%clk 01:31:05]}
{[%emt 00:00:48]} 3. e3 {[%clk 01:31:49]} {[%emt 00:00:10]} c5 {[%clk
01:31:09]} {[%emt 00:00:34]} 4. Nc3 {[%clk 01:31:49]} {[%emt 00:00:33]} a6
{[%clk 01:21:49]} {[%emt 00:08:38]} 5. dxc5 {[%clk 01:31:48]} {[%emt 00:00:31]}
Nc6 {[%clk 01:20:05]} {[%emt 00:02:14]} 6. a3 {[%clk 01:30:08]} {[%emt
00:02:10]} e5 {[%clk 01:05:30]} {[%emt 00:15:06]} 7. Bg5 {[%clk 01:30:23]}
{[%emt 00:00:14]} Be6 {[%clk 01:05:50]} {[%emt 00:00:10]} 8. b4 {[%clk
01:30:37]} {[%emt 00:00:15]} b6 {[%clk 01:05:38]} {[%emt 00:00:43]} 9. Nf3
{[%clk 01:24:10]} {[%emt 00:06:56]} bxc5 {[%clk 01:04:11]} {[%emt 00:01:57]} 10.
b5 {[%clk 01:23:26]} {[%emt 00:01:14]} Qa5 {[%clk 01:02:09]} {[%emt 00:02:32]}
11. Qd2 {[%clk 01:23:08]} {[%emt 00:00:48]} d4 {[%clk 01:01:49]} {[%emt
00:00:50]} 12. exd4 {[%clk 01:14:34]} {[%emt 00:09:05]} cxd4 {[%clk 01:00:35]}
{[%emt 00:01:43]} 13. bxc6 {[%clk 01:08:20]} {[%emt 00:06:45]} dxc3 {[%clk
01:00:29]} {[%emt 00:00:35]} 14. Qe2 {[%clk 01:08:09]} {[%emt 00:00:40]} Bd6
{[%clk 00:59:48]} {[%emt 00:01:11]} 15. Rd1 {[%clk 01:06:06]} {[%emt 00:02:33]}
Bc7 {[%clk 00:58:45]} {[%emt 00:01:33]} 16. Bxf6 {[%clk 00:58:46]} {[%emt
00:07:50]} gxf6 {[%clk 00:58:47]} {[%emt 00:00:28]} 17. Qe4 {[%clk 00:58:01]}
{[%emt 00:01:14]} Qxa3 {[%clk 00:53:19]} {[%emt 00:05:59]} 18. Qh4 {[%clk
00:54:01]} {[%emt 00:04:30]} Qe7 {[%clk 00:49:32]} {[%emt 00:04:17]} 19. Qa4
{[%clk 00:47:33]} {[%emt 00:06:58]} Qc5 {[%clk 00:42:09]} {[%emt 00:07:54]} 20.
Bd3 {[%clk 00:38:44]} {[%emt 00:09:18]} Bd5 {[%clk 00:31:07]} {[%emt 00:11:33]}
21. Bf5 {[%clk 00:37:14]} {[%emt 00:02:00]} Qxc6 {[%clk 00:27:33]} {[%emt
00:04:05]} 22. Bd7+ {[%clk 00:36:02]} {[%emt 00:02:11]} Qxd7 {[%clk 00:27:48]}
{[%emt 00:00:10]} 23. Qxd7+ {[%clk 00:36:30]} Kxd7 {[%clk 00:28:16]} 24. Rxd5+
{[%clk 00:36:48]} {[%emt 00:00:12]} Ke6 {[%clk 00:27:41]} {[%emt 00:00:43]} 25.
Rc5 {[%clk 00:35:43]} {[%emt 00:01:35]} Bd6 {[%clk 00:27:07]} {[%emt 00:01:03]}
26. Rc4 {[%clk 00:35:21]} {[%emt 00:00:54]} Rhc8 {[%clk 00:24:16]} {[%emt
00:03:20]} 27. Ra4 {[%clk 00:34:27]} {[%emt 00:01:23]} Rcb8 {[%clk 00:18:54]}
{[%emt 00:05:53]} 28. Ke2 {[%clk 00:34:23]} {[%emt 00:00:34]} Rb4 {[%clk
00:17:31]} {[%emt 00:01:52]} 29. Rha1 {[%clk 00:31:15]} {[%emt 00:03:39]} Rxa4
{[%clk 00:15:37]} {[%emt 00:02:25]} 30. Rxa4 {[%clk 00:31:44]} a5 {[%clk
00:15:58]} {[%emt 00:00:10]} 31. Ne1 {[%clk 00:29:17]} {[%emt 00:02:56]} f5
{[%clk 00:15:52]} {[%emt 00:00:35]} 32. Nd3 {[%clk 00:28:42]} {[%emt 00:01:05]}
e4 {[%clk 00:15:51]} {[%emt 00:00:32]} 33. Nc1 {[%clk 00:29:03]} {[%emt
00:00:08]} Bb4 {[%clk 00:15:33]} {[%emt 00:00:48]} 34. Nb3 {[%clk 00:28:40]}
{[%emt 00:00:54]} Rd8 {[%clk 00:15:36]} {[%emt 00:00:27]} 35. Ke3 {[%clk
00:26:57]} {[%emt 00:02:12]} Rd5 {[%clk 00:12:08]} {[%emt 00:03:58]} 36. Ra1
{[%clk 00:26:15]} {[%emt 00:01:12]} Ke5 {[%clk 00:11:32]} {[%emt 00:01:06]} 37.
g3 {[%clk 00:26:01]} {[%emt 00:00:43]} Ke6 {[%clk 00:07:46]} {[%emt 00:04:18]}
38. Nd4+ {[%clk 00:25:19]} {[%emt 00:01:11]} Kd6 {[%clk 00:08:00]} {[%emt
00:00:16]} 39. Nb3 {[%clk 00:25:40]} {[%emt 00:00:09]} Kc6 {[%clk 00:05:58]}
{[%emt 00:02:32]} 40. Nd4+ {[%clk 00:25:50]} {[%emt 00:00:21]} Kb6 {[%clk
00:06:11]} {[%emt 00:00:17]} 41. Nb3 {[%clk 00:26:04]} {[%emt 00:00:15]} Ka6
{[%clk 00:05:53]} {[%emt 00:00:49]} 42. Ke2 {[%clk 00:25:39]} {[%emt 00:00:57]}
Kb5 {[%clk 00:05:20]} {[%emt 00:01:00]} 43. Ke3 {[%clk 00:26:02]} {[%emt
00:00:07]} a4 {[%clk 00:02:23]} {[%emt 00:03:28]} 44. Nd4+ {[%clk 00:24:42]}
{[%emt 00:01:50]} Kb6 {[%clk 00:01:52]} {[%emt 00:01:01]} 45. Rxa4 {[%clk
00:24:06]} {[%emt 00:01:07]} Bc5 {[%clk 00:02:06]} {[%emt 00:00:15]} 46. g4
{[%clk 00:19:17]} {[%emt 00:05:18]} Bxd4+ {[%clk 00:14:26]} {[%emt 00:18:12]}
47. Rxd4 {[%clk 00:49:46]} Kc5 {[%clk 00:14:54]} {[%emt 00:00:01]} 48. Rxd5+
{[%clk 00:45:34]} {[%emt 00:04:44]} Kxd5 {[%clk 00:15:22]} {[%emt 00:00:05]} 49.
gxf5 {[%clk 00:45:37]} {[%emt 00:00:23]} f6 {[%clk 00:15:29]} {[%emt 00:00:23]}
50. f3 {[%clk 00:43:34]} {[%emt 00:02:32]} exf3 {[%clk 00:15:18]} {[%emt
00:00:41]} 51. Kxf3 {[%clk 00:44:04]} Ke5 {[%clk 00:14:43]} {[%emt 00:01:07]}
52. Ke3 {[%clk 00:44:33]} {[%emt 00:00:01]} Kxf5 {[%clk 00:15:10]} {[%emt
00:00:02]} 53. Kd3 {[%clk 00:44:31]} {[%emt 00:00:32]} Kf4 {[%clk 00:15:25]}
{[%emt 00:00:16]} 54. Kxc3 {[%clk 00:44:55]} {[%emt 00:00:05]} Ke3 {[%clk
00:15:47]} {[%emt 00:00:07]} 55. Kb4 {[%clk 00:44:52]} {[%emt 00:00:33]} f5
{[%clk 00:15:50]} {[%emt 00:00:30]} 56. c4 {[%clk 00:45:18]} {[%emt 00:00:02]}
f4 {[%clk 00:16:16]} {[%emt 00:00:03]} 57. c5 {[%clk 00:45:45]} {[%emt
00:00:04]} f3 {[%clk 00:16:44]} {[%emt 00:00:02]} 58. c6 {[%clk 00:46:11]}
{[%emt 00:00:03]} f2 {[%clk 00:17:11]} {[%emt 00:00:03]} 59. c7 {[%clk
00:46:39]} {[%emt 00:00:03]} f1=Q {[%clk 00:17:35]} {[%emt 00:00:07]} 60. c8=Q
{[%emt 00:00:04]} Qf4+ {[%clk 00:16:48]} {[%emt 00:01:15]} 61. Kb3 {[%clk
00:45:52]} {[%emt 00:01:45]} Qxh2 {[%clk 00:16:48]} {[%emt 00:00:31]} 62. Qc3
{[%clk 00:46:13]} {[%emt 00:00:08]} Ke4 {[%clk 00:12:22]} {[%emt 00:05:00]} 63.
Qc4+ {[%clk 00:46:41]} Kf5 {[%clk 00:08:41]} {[%emt 00:04:11]} 64. Qf7+ {[%clk
00:47:01]} {[%emt 00:00:09]} Kg4 {[%clk 00:07:58]} {[%emt 00:01:13]} 1/2-1/2

[Event "NJSK 2018 Jeugd B"]
[Site "Assen, Netherlands"]
[Date "2018.05.05"]
[Round "7.5"]
[White "Bruggink, Tycho"]
[Black "Kouwenhoven, Derk"]
[Result "0-1"]
[TimeControl "40/90m+30m+30sec/move"]
[WhiteElo "1899"]
[BlackElo "2091"]

1. e4 {[%clk 01:30:59]} {[%emt 00:00:07]} e5 {[%clk 01:30:53]} {[%emt
00:00:41]} 2. Nf3 {[%clk 01:31:25]} {[%emt 00:00:08]} Nc6 {[%clk 01:31:16]}
{[%emt 00:00:12]} 3. Bb5 {[%clk 01:31:52]} {[%emt 00:00:03]} a6 {[%clk
01:31:40]} {[%emt 00:00:11]} 4. Ba4 {[%clk 01:32:19]} {[%emt 00:00:05]} Nf6
{[%clk 01:31:55]} {[%emt 00:00:20]} 5. O-O {[%clk 01:32:26]} {[%emt 00:00:30]}
Be7 {[%clk 01:32:15]} {[%emt 00:00:10]} 6. Re1 {[%clk 01:32:46]} {[%emt
00:00:12]} b5 {[%clk 01:32:39]} {[%emt 00:00:08]} 7. Bb3 {[%clk 01:33:12]}
{[%emt 00:00:06]} O-O {[%clk 01:33:03]} {[%emt 00:00:06]} 8. c3 {[%clk
01:33:36]} {[%emt 00:00:07]} d5 {[%clk 01:33:26]} {[%emt 00:00:13]} 9. exd5
{[%clk 01:33:57]} {[%emt 00:00:13]} Nxd5 {[%clk 01:33:52]} {[%emt 00:00:04]} 10.
Nxe5 {[%clk 01:34:22]} {[%emt 00:00:04]} Nxe5 {[%clk 01:34:17]} {[%emt
00:00:02]} 11. Rxe5 {[%clk 01:34:47]} {[%emt 00:00:06]} c6 {[%clk 01:34:43]}
{[%emt 00:00:04]} 12. d3 {[%clk 01:35:13]} {[%emt 00:00:01]} Bd6 {[%clk
01:34:57]} {[%emt 00:00:15]} 13. Re1 {[%clk 01:34:38]} {[%emt 00:01:23]} Qh4
{[%clk 01:35:06]} {[%emt 00:00:22]} 14. g3 {[%clk 01:34:43]} {[%emt 00:00:28]}
Qh3 {[%clk 01:35:28]} {[%emt 00:00:05]} 15. Re4 {[%clk 01:35:09]} {[%emt
00:00:01]} Qf5 {[%clk 01:31:32]} {[%emt 00:02:54]} 16. Nd2 {[%clk 01:26:14]}
{[%emt 00:09:20]} Bd7 {[%clk 01:30:09]} {[%emt 00:01:54]} 17. Nf1 {[%clk
01:18:32]} {[%emt 00:08:13]} Rae8 {[%clk 01:26:36]} {[%emt 00:04:03]} 18. Rxe8
{[%clk 01:17:10]} {[%emt 00:01:54]} Rxe8 {[%clk 01:26:31]} {[%emt 00:00:34]} 19.
Ne3 {[%clk 01:17:36]} {[%emt 00:00:03]} Nxe3 {[%clk 01:25:11]} {[%emt
00:01:51]} 20. Bxe3 {[%clk 01:17:29]} {[%emt 00:00:36]} c5 {[%clk 01:23:29]}
{[%emt 00:02:11]} 21. d4 {[%clk 01:17:19]} {[%emt 00:00:40]} c4 {[%clk
01:21:44]} {[%emt 00:02:16]} 22. Bc2 {[%clk 01:17:41]} {[%emt 00:00:09]} Qd5
{[%clk 01:22:11]} {[%emt 00:00:02]} 23. Qe2 {[%clk 01:16:52]} {[%emt 00:01:18]}
f5 {[%clk 01:18:31]} {[%emt 00:04:11]} 24. f3 {[%clk 01:11:53]} {[%emt
00:05:27]} f4 {[%clk 01:13:33]} {[%emt 00:05:44]} 25. Be4 {[%clk 01:12:15]} Qg5
{[%clk 01:06:36]} {[%emt 00:07:20]} 26. Bd2 {[%clk 01:12:11]} {[%emt 00:00:34]}
Kh8 {[%clk 01:01:17]} {[%emt 00:05:49]} 27. Qg2 {[%clk 01:12:06]} {[%emt
00:00:34]} Qf6 {[%clk 00:57:15]} {[%emt 00:04:34]} 28. g4 {[%clk 01:09:56]}
{[%emt 00:02:39]} g5 {[%clk 00:56:03]} {[%emt 00:01:42]} 29. Qh3 {[%clk
01:07:11]} {[%emt 00:03:14]} h6 {[%clk 00:55:08]} {[%emt 00:01:25]} 30. Re1
{[%clk 01:06:55]} {[%emt 00:00:46]} Kg7 {[%clk 00:54:50]} {[%emt 00:00:49]} 31.
Qg2 {[%clk 00:58:49]} {[%emt 00:08:36]} Rh8 {[%clk 00:54:31]} {[%emt 00:00:50]}
32. Re2 {[%clk 00:56:57]} {[%emt 00:02:21]} h5 {[%clk 00:54:33]} {[%emt
00:00:28]} 33. h3 {[%clk 00:57:24]} {[%emt 00:00:04]} hxg4 {[%clk 00:53:47]}
{[%emt 00:01:16]} 34. hxg4 {[%clk 00:57:39]} {[%emt 00:00:13]} Kf8 {[%clk
00:48:22]} {[%emt 00:05:56]} 35. Kf1 {[%clk 00:57:32]} {[%emt 00:00:35]} Rh4
{[%clk 00:47:05]} {[%emt 00:01:48]} 36. Ke1 {[%clk 00:55:33]} {[%emt 00:02:28]}
a5 {[%clk 00:46:51]} {[%emt 00:00:46]} 37. Kd1 {[%clk 00:52:51]} {[%emt
00:03:10]} b4 {[%clk 00:45:42]} {[%emt 00:01:40]} 38. Kc2 {[%clk 00:53:16]}
{[%emt 00:00:04]} Be7 {[%clk 00:43:31]} {[%emt 00:02:41]} 39. Bd5 {[%clk
00:51:51]} {[%emt 00:01:55]} Qa6 {[%clk 00:42:21]} {[%emt 00:01:41]} 40. Qf1
{[%clk 00:51:23]} {[%emt 00:00:59]} Bd6 {[%clk 00:42:27]} {[%emt 00:00:23]} 41.
Bxc4 {[%clk 00:50:57]} {[%emt 00:00:55]} Qc6 {[%clk 00:42:29]} {[%emt
00:00:28]} 42. b3 {[%clk 00:44:56]} {[%emt 00:06:32]} Rh8 {[%clk 00:42:41]}
{[%emt 00:00:17]} 43. d5 {[%clk 00:43:59]} {[%emt 00:01:27]} Qc5 {[%clk
00:42:47]} {[%emt 00:00:24]} 44. Qf2 {[%clk 00:44:11]} {[%emt 00:00:19]} Qxf2
{[%clk 00:41:54]} {[%emt 00:01:51]} 45. Rxf2 {[%clk 00:44:37]} {[%emt
00:00:05]} Rh3 {[%clk 00:42:17]} {[%emt 00:00:03]} 46. Bf1 {[%clk 00:41:32]}
{[%emt 00:03:09]} Rg3 {[%clk 00:42:42]} {[%emt 00:00:06]} 47. Bg2 {[%clk
00:40:32]} {[%emt 00:01:30]} bxc3 {[%clk 00:41:58]} {[%emt 00:01:13]} 48. Be1
{[%clk 00:35:19]} {[%emt 00:05:42]} Be8 {[%clk 00:36:55]} {[%emt 00:05:33]} 49.
Re2 {[%clk 00:27:37]} {[%emt 00:08:12]} Bg6+ {[%clk 00:37:15]} {[%emt
00:00:10]} 50. Kxc3 {[%clk 00:28:04]} {[%emt 00:00:03]} Bb4+ {[%clk 00:37:35]}
{[%emt 00:00:12]} 51. Kd4 {[%clk 00:27:49]} {[%emt 00:00:43]} Bxe1 {[%clk
00:37:56]} {[%emt 00:00:08]} 52. Rxe1 {[%clk 00:28:17]} {[%emt 00:00:02]} Rxg2
{[%clk 00:38:22]} {[%emt 00:00:05]} 53. Re5 {[%clk 00:28:31]} {[%emt 00:00:15]}
Rf2 {[%clk 00:36:41]} {[%emt 00:02:11]} 54. Rxg5 {[%clk 00:28:50]} {[%emt
00:00:11]} Bb1 {[%clk 00:36:55]} {[%emt 00:00:17]} 55. Ke5 {[%clk 00:29:09]}
{[%emt 00:00:13]} Rxf3 {[%clk 00:37:10]} {[%emt 00:00:13]} 56. d6 {[%clk
00:29:33]} {[%emt 00:00:06]} Bxa2 {[%clk 00:35:30]} {[%emt 00:02:10]} 57. Rf5+
{[%clk 00:29:32]} {[%emt 00:00:30]} Ke8 {[%clk 00:35:36]} {[%emt 00:00:25]} 58.
Rxf4 {[%clk 00:29:56]} {[%emt 00:00:05]} Rxb3 {[%clk 00:33:37]} {[%emt
00:02:30]} 59. Ra4 {[%clk 00:30:14]} {[%emt 00:00:12]} Rb5+ {[%clk 00:33:21]}
{[%emt 00:00:46]} 60. Kf6 {[%clk 00:30:22]} {[%emt 00:00:22]} Bb3 {[%clk
00:33:44]} {[%emt 00:00:07]} 61. Re4+ {[%clk 00:30:47]} {[%emt 00:00:06]} Kd7
{[%clk 00:33:48]} {[%emt 00:00:25]} 62. Re5 {[%clk 00:31:13]} {[%emt 00:00:05]}
Bd5 {[%clk 00:32:00]} {[%emt 00:02:17]} 63. g5 {[%clk 00:31:37]} {[%emt
00:00:05]} a4 {[%clk 00:31:59]} {[%emt 00:00:32]} 64. g6 {[%clk 00:31:35]}
{[%emt 00:00:32]} a3 {[%clk 00:32:24]} {[%emt 00:00:05]} 65. g7 {[%clk
00:29:37]} {[%emt 00:02:29]} a2 {[%clk 00:32:45]} {[%emt 00:00:07]} 66. Re7+
{[%clk 00:29:15]} {[%emt 00:00:52]} Kxd6 {[%clk 00:32:22]} {[%emt 00:00:53]} 67.
Ra7 {[%clk 00:29:39]} {[%emt 00:00:07]} Rb1 {[%clk 00:32:19]} {[%emt 00:00:33]}
68. Ra6+ {[%clk 00:30:00]} {[%emt 00:00:08]} Kc7 {[%clk 00:32:17]} {[%emt
00:00:32]} 0-1

[Event "NJSK 2018 Jeugd B"]
[Site "Assen, Netherlands"]
[Date "2018.05.05"]
[Round "7.6"]
[White "Cchung, Chi Yun"]
[Black "Van Randtwijk, Mick"]
[Result "0-1"]
[TimeControl "40/90m+30m+30sec/move"]
[WhiteElo "1783"]
[BlackElo "1992"]

1. e4 {[%clk 01:30:58]} c5 {[%clk 01:30:56]} {[%emt 00:00:19]} 2. Nf3 {[%clk
01:31:23]} {[%emt 00:00:24]} d6 {[%clk 01:31:21]} {[%emt 00:00:18]} 3. d4
{[%clk 01:31:49]} {[%emt 00:00:06]} cxd4 {[%clk 01:31:45]} {[%emt 00:00:11]} 4.
Nxd4 {[%clk 01:32:14]} {[%emt 00:00:06]} Nf6 {[%clk 01:32:04]} {[%emt
00:00:17]} 5. Nc3 {[%clk 01:32:28]} {[%emt 00:00:23]} a6 {[%clk 01:32:25]}
{[%emt 00:00:11]} 6. Bg5 {[%clk 01:32:52]} {[%emt 00:00:05]} Nbd7 {[%clk
01:32:49]} {[%emt 00:00:07]} 7. f4 {[%clk 01:33:16]} {[%emt 00:00:05]} Qc7
{[%clk 01:33:13]} {[%emt 00:00:09]} 8. Qf3 {[%clk 01:31:23]} {[%emt 00:02:47]}
b5 {[%clk 01:33:29]} {[%emt 00:00:19]} 9. O-O-O {[%clk 01:22:38]} {[%emt
00:07:35]} Bb7 {[%clk 01:33:43]} {[%emt 00:00:16]} 10. g4 {[%clk 01:21:34]}
{[%emt 00:01:34]} Rc8 {[%clk 01:30:44]} {[%emt 00:03:29]} 11. Bd3 {[%clk
01:15:24]} {[%emt 00:06:39]} h6 {[%clk 01:28:41]} {[%emt 00:02:33]} 12. Bxf6
{[%clk 01:15:31]} {[%emt 00:00:23]} Nxf6 {[%clk 01:28:28]} {[%emt 00:00:43]} 13.
h4 {[%clk 01:14:22]} {[%emt 00:01:39]} h5 {[%clk 01:25:56]} {[%emt 00:03:02]}
14. g5 {[%clk 01:14:09]} {[%emt 00:00:44]} Ng4 {[%clk 01:26:20]} {[%emt
00:00:06]} 15. g6 {[%clk 01:08:32]} {[%emt 00:06:05]} fxg6 {[%clk 01:21:09]}
{[%emt 00:05:41]} 16. Qe2 {[%clk 00:51:51]} {[%emt 00:17:16]} e5 {[%clk
01:19:41]} {[%emt 00:01:53]} 17. fxe5 {[%clk 00:48:50]} {[%emt 00:03:31]} dxe5
{[%clk 01:19:43]} {[%emt 00:00:29]} 18. Nf3 {[%clk 00:33:38]} {[%emt 00:15:40]}
Bc5 {[%clk 01:19:12]} {[%emt 00:01:01]} 19. Rdf1 {[%clk 00:18:42]} {[%emt
00:15:25]} O-O {[%clk 01:15:02]} {[%emt 00:04:43]} 20. Ng5 {[%clk 00:18:25]}
{[%emt 00:00:44]} Qb6 {[%clk 01:11:40]} {[%emt 00:03:55]} 21. Nd5 {[%clk
00:17:07]} {[%emt 00:01:46]} Bxd5 {[%clk 01:11:35]} {[%emt 00:00:35]} 22. exd5
{[%clk 00:17:31]} {[%emt 00:00:06]} Nf2 {[%clk 01:09:16]} {[%emt 00:02:49]} 23.
Rh2 {[%clk 00:17:23]} {[%emt 00:00:39]} Nxd3+ {[%clk 01:09:35]} {[%emt
00:00:10]} 24. Qxd3 {[%clk 00:17:38]} {[%emt 00:00:14]} Rxf1+ {[%clk 01:09:29]}
{[%emt 00:00:37]} 25. Qxf1 {[%clk 00:17:59]} {[%emt 00:00:09]} Rf8 {[%clk
01:09:51]} {[%emt 00:00:09]} 26. Qd3 {[%clk 00:17:19]} {[%emt 00:01:10]} Be3+
{[%clk 01:10:04]} {[%emt 00:00:16]} 27. Kb1 {[%clk 00:17:10]} {[%emt 00:00:38]}
Bxg5 {[%clk 01:10:23]} {[%emt 00:00:12]} 28. hxg5 {[%clk 00:17:36]} {[%emt
00:00:04]} Qg1+ {[%clk 01:10:47]} {[%emt 00:00:06]} 0-1